[Event "Early-Titled-Tuesday-Blitz-May-07-2024"]
[Site "Chess.com"]
[Date "2024.05.07"]
[Round "7"]
[White "bazar-wokzal"]
[Black "Abund"]
[Result "1/2-1/2"]
[WhiteElo "2593"]
[BlackElo "2754"]
[TimeControl "180+1"]
[EndTime "9:21:59 PDT"]
[Termination "Game drawn by repetition"]

1. e4 {[%clk 0:02:38.6]} 1... c6 {[%clk 0:02:58.1]} 2. d4 {[%clk 0:02:37.9]}
2... d5 {[%clk 0:02:58.5]} 3. f3 {[%clk 0:02:38.5]} 3... Qb6 {[%clk 0:02:53.5]}
4. Nc3 {[%clk 0:02:34.8]} 4... dxe4 {[%clk 0:02:53.8]} 5. fxe4 {[%clk
0:02:34.3]} 5... e5 {[%clk 0:02:53.4]} 6. Nf3 {[%clk 0:02:19.1]} 6... exd4
{[%clk 0:02:52.8]} 7. Qxd4 {[%clk 0:02:17.6]} 7... Qxd4 {[%clk 0:02:51.5]} 8.
Nxd4 {[%clk 0:02:17.7]} 8... Bd6 {[%clk 0:02:52.1]} 9. Bc4 {[%clk 0:02:14]} 9...
Nd7 {[%clk 0:02:45.5]} 10. O-O {[%clk 0:02:09.8]} 10... Ne5 {[%clk 0:02:45.6]}
11. Bb3 {[%clk 0:02:05.7]} 11... Ne7 {[%clk 0:02:30.8]} 12. Bf4 {[%clk
0:01:57.7]} 12... N7g6 {[%clk 0:02:23.8]} 13. Bg3 {[%clk 0:01:54.1]} 13... h5
{[%clk 0:02:18.4]} 14. h3 {[%clk 0:01:50.9]} 14... f6 {[%clk 0:02:01.8]} 15.
Rad1 {[%clk 0:01:48.4]} 15... Bc5 {[%clk 0:01:38.2]} 16. Kh1 {[%clk 0:01:44.9]}
16... Bd7 {[%clk 0:01:38.5]} 17. Nf5 {[%clk 0:01:42.5]} 17... Bf8 {[%clk
0:01:32.2]} 18. Ne2 {[%clk 0:01:35]} 18... O-O-O {[%clk 0:01:30.1]} 19. Nd6+
{[%clk 0:01:30.8]} 19... Bxd6 {[%clk 0:01:29.7]} 20. Rxd6 {[%clk 0:01:31.6]}
20... Kc7 {[%clk 0:01:17]} 21. Rfd1 {[%clk 0:01:31]} 21... Bc8 {[%clk
0:01:16.9]} 22. Rxd8 {[%clk 0:01:29.4]} 22... Rxd8 {[%clk 0:01:17.8]} 23. Rxd8
{[%clk 0:01:28.7]} 23... Kxd8 {[%clk 0:01:18.7]} 24. Nf4 {[%clk 0:01:26.7]}
24... Nxf4 {[%clk 0:01:11.1]} 25. Bxf4 {[%clk 0:01:26.7]} 25... Ke7 {[%clk
0:01:06.8]} 26. Bxe5 {[%clk 0:01:25.6]} 26... fxe5 {[%clk 0:01:07.1]} 27. h4
{[%clk 0:01:21.9]} 27... Kd6 {[%clk 0:01:03.4]} 28. Kg1 {[%clk 0:01:20.8]} 28...
Kc5 {[%clk 0:00:55.8]} 29. c3 {[%clk 0:01:20]} 29... Bg4 {[%clk 0:00:55.5]} 30.
Kf2 {[%clk 0:01:19.7]} 30... a5 {[%clk 0:00:54.3]} 31. Ke3 {[%clk 0:01:18.3]}
31... b5 {[%clk 0:00:54.6]} 32. Bf7 {[%clk 0:01:16.6]} 32... b4 {[%clk
0:00:51.8]} 33. a3 {[%clk 0:01:13.3]} 33... Kb5 {[%clk 0:00:36.1]} 34. cxb4
{[%clk 0:01:06.5]} 34... axb4 {[%clk 0:00:36.3]} 35. Be8 {[%clk 0:01:03.3]}
35... bxa3 {[%clk 0:00:30.6]} 36. bxa3 {[%clk 0:01:02.5]} 36... Ka4 {[%clk
0:00:19]} 37. Bxc6+ {[%clk 0:01:01.2]} 37... Kxa3 {[%clk 0:00:19.5]} 38. Be8
{[%clk 0:00:54.8]} 38... Kb3 {[%clk 0:00:16.5]} 39. Bf7+ {[%clk 0:00:51.8]}
39... Kc2 {[%clk 0:00:14.6]} 40. Be8 {[%clk 0:00:43.2]} 40... Kd1 {[%clk
0:00:13.5]} 41. Bb5 {[%clk 0:00:42.2]} 41... Ke1 {[%clk 0:00:12.7]} 42. Bc4
{[%clk 0:00:41.7]} 42... Bd1 {[%clk 0:00:10.5]} 43. Bb5 {[%clk 0:00:40.9]} 43...
Bg4 {[%clk 0:00:09.7]} 44. Bc4 {[%clk 0:00:39.3]} 44... Kd1 {[%clk 0:00:09.8]}
45. Bb3+ {[%clk 0:00:35.2]} 45... Ke1 {[%clk 0:00:06.6]} 46. Bc4 {[%clk
0:00:35.3]} 1/2-1/2

[Event "Early-Titled-Tuesday-Blitz-May-07-2024"]
[Site "Chess.com"]
[Date "2024.05.07"]
[Round "7"]
[White "kyawmyataung2005"]
[Black "PonyQueen07"]
[Result "1-0"]
[WhiteElo "2289"]
[BlackElo "2131"]
[TimeControl "180+1"]
[EndTime "9:21:59 PDT"]
[Termination "kyawmyataung2005 won by checkmate"]

1. e4 {[%clk 0:02:59.5]} 1... c5 {[%clk 0:02:59.9]} 2. Nf3 {[%clk 0:02:59.4]}
2... Nc6 {[%clk 0:03:00.2]} 3. d4 {[%clk 0:02:59.4]} 3... cxd4 {[%clk
0:03:01.1]} 4. Nxd4 {[%clk 0:03:00.1]} 4... Nf6 {[%clk 0:03:01.7]} 5. Nc3 {[%clk
0:03:00.3]} 5... e5 {[%clk 0:03:01.9]} 6. Ndb5 {[%clk 0:03:00.1]} 6... d6 {[%clk
0:03:02.4]} 7. Bg5 {[%clk 0:02:59.8]} 7... a6 {[%clk 0:03:02.2]} 8. Na3 {[%clk
0:03:00.2]} 8... b5 {[%clk 0:03:02.2]} 9. Bxf6 {[%clk 0:03:00.7]} 9... gxf6
{[%clk 0:03:03.1]} 10. Nd5 {[%clk 0:03:01.2]} 10... Bg7 {[%clk 0:03:01.7]} 11.
Bd3 {[%clk 0:02:58.6]} 11... Ne7 {[%clk 0:03:00.1]} 12. Ne3 {[%clk 0:02:55.4]}
12... O-O {[%clk 0:02:30.4]} 13. c3 {[%clk 0:02:49]} 13... Be6 {[%clk
0:01:57.9]} 14. O-O {[%clk 0:02:46.9]} 14... Qb6 {[%clk 0:01:37.2]} 15. Nac2
{[%clk 0:02:43.4]} 15... Rad8 {[%clk 0:01:16]} 16. Nb4 {[%clk 0:02:40.4]} 16...
Ng6 {[%clk 0:00:59.3]} 17. Nbd5 {[%clk 0:02:34.9]} 17... Qb7 {[%clk 0:00:47.1]}
18. g3 {[%clk 0:02:28.8]} 18... Bh3 {[%clk 0:00:43.5]} 19. b4 {[%clk 0:02:14.2]}
19... Ne7 {[%clk 0:00:22.7]} 20. Qh5 {[%clk 0:02:02.1]} 20... Be6 {[%clk
0:00:14.8]} 21. Qf3 {[%clk 0:01:49.3]} 21... f5 {[%clk 0:00:09]} 22. Nxe7+
{[%clk 0:01:42.1]} 22... Qxe7 {[%clk 0:00:07.1]} 23. exf5 {[%clk 0:01:42.2]}
23... Bc8 {[%clk 0:00:03.4]} 24. Nd5 {[%clk 0:01:38.7]} 24... Qg5 {[%clk
0:00:02.5]} 25. h4 {[%clk 0:01:28.6]} 25... Qh6 {[%clk 0:00:01.3]} 26. f6 {[%clk
0:01:28.2]} 26... Bxf6 {[%clk 0:00:00.8]} 27. Nxf6+ {[%clk 0:01:27.7]} 27... Kh8
{[%clk 0:00:01.7]} 28. Bxh7 {[%clk 0:00:58.7]} 28... Qg7 {[%clk 0:00:01.3]} 29.
Be4 {[%clk 0:00:54.7]} 29... Qh6 {[%clk 0:00:01.1]} 30. Kg2 {[%clk 0:00:49.4]}
30... d5 {[%clk 0:00:01.4]} 31. Bxd5 {[%clk 0:00:46.2]} 31... Rxd5 {[%clk
0:00:00.3]} 32. Nxd5 {[%clk 0:00:45.8]} 32... Bb7 {[%clk 0:00:00.3]} 33. Rad1
{[%clk 0:00:44.3]} 33... Rd8 {[%clk 0:00:00.7]} 34. Kg1 {[%clk 0:00:38]} 34...
Qe6 {[%clk 0:00:01.3]} 35. Qf6+ {[%clk 0:00:37.2]} 35... Kg8 {[%clk 0:00:01.6]}
36. Qxd8+ {[%clk 0:00:36.6]} 36... Kg7 {[%clk 0:00:01.6]} 37. Qg5+ {[%clk
0:00:35.6]} 37... Kf8 {[%clk 0:00:01.5]} 38. Nf6 {[%clk 0:00:35.6]} 38... Ke7
{[%clk 0:00:01.3]} 39. Ng8+ {[%clk 0:00:31.8]} 39... Kf8 {[%clk 0:00:01.5]} 40.
Rd8+ {[%clk 0:00:31.3]} 40... Qe8 {[%clk 0:00:02.4]} 41. Rxe8+ {[%clk
0:00:27.9]} 41... Kxe8 {[%clk 0:00:03.3]} 42. Qe7# {[%clk 0:00:28.6]} 1-0

[Event "Early-Titled-Tuesday-Blitz-May-07-2024"]
[Site "Chess.com"]
[Date "2024.05.07"]
[Round "7"]
[White "Kotofeyca"]
[Black "ChessSwole"]
[Result "1-0"]
[WhiteElo "2514"]
[BlackElo "2628"]
[TimeControl "180+1"]
[EndTime "9:22:02 PDT"]
[Termination "Kotofeyca won by resignation"]

1. d4 {[%clk 0:03:00.9]} 1... d5 {[%clk 0:02:58.1]} 2. c4 {[%clk 0:03:00.7]}
2... dxc4 {[%clk 0:02:58.5]} 3. Nf3 {[%clk 0:02:59.9]} 3... Nf6 {[%clk
0:02:58.7]} 4. e3 {[%clk 0:03:00.2]} 4... e6 {[%clk 0:02:58.4]} 5. Bxc4 {[%clk
0:03:00.4]} 5... a6 {[%clk 0:02:59.2]} 6. O-O {[%clk 0:02:59.8]} 6... c5 {[%clk
0:02:56.7]} 7. Nc3 {[%clk 0:02:56.8]} 7... Nc6 {[%clk 0:02:52.6]} 8. Qe2 {[%clk
0:02:22.1]} 8... b5 {[%clk 0:02:50.2]} 9. Bb3 {[%clk 0:02:21.9]} 9... cxd4
{[%clk 0:02:45.9]} 10. Rd1 {[%clk 0:02:12.7]} 10... Bb7 {[%clk 0:02:37.7]} 11.
exd4 {[%clk 0:02:04.9]} 11... Nb4 {[%clk 0:02:29.5]} 12. a4 {[%clk 0:02:00.1]}
12... Be7 {[%clk 0:01:51.3]} 13. axb5 {[%clk 0:01:59.2]} 13... O-O {[%clk
0:01:51.3]} 14. Bg5 {[%clk 0:01:49.3]} 14... Qb6 {[%clk 0:01:38]} 15. Ne5 {[%clk
0:01:35.8]} 15... Nbd5 {[%clk 0:01:13.5]} 16. Nxd5 {[%clk 0:01:27.6]} 16... Bxd5
{[%clk 0:01:12.6]} 17. Bxd5 {[%clk 0:01:25.6]} 17... Nxd5 {[%clk 0:01:13.5]} 18.
Bxe7 {[%clk 0:01:24.4]} 18... Nxe7 {[%clk 0:01:14.4]} 19. Nd7 {[%clk 0:01:22]}
19... Qxb5 {[%clk 0:01:11.1]} 20. Qxb5 {[%clk 0:01:21.3]} 20... axb5 {[%clk
0:01:12]} 21. Nxf8 {[%clk 0:01:21.5]} 21... Rxf8 {[%clk 0:01:12.9]} 22. Ra7
{[%clk 0:01:16.3]} 22... Nd5 {[%clk 0:01:09.9]} 23. Rda1 {[%clk 0:01:15.8]}
23... g5 {[%clk 0:00:59.2]} 24. Kf1 {[%clk 0:01:10.8]} 24... Kg7 {[%clk
0:00:57.6]} 25. Ra8 {[%clk 0:01:09]} 25... Rxa8 {[%clk 0:00:57.9]} 26. Rxa8
{[%clk 0:01:09.2]} 26... Kf6 {[%clk 0:00:58.7]} 27. Rh8 {[%clk 0:01:05.4]} 27...
Kg7 {[%clk 0:00:57.6]} 28. Rb8 {[%clk 0:01:05.2]} 28... b4 {[%clk 0:00:57.8]}
29. Ke2 {[%clk 0:01:01.8]} 29... Kg6 {[%clk 0:00:56.9]} 30. g4 {[%clk 0:00:55]}
30... h5 {[%clk 0:00:55.2]} 31. h3 {[%clk 0:00:52.3]} 31... Nf4+ {[%clk
0:00:54.1]} 32. Kf3 {[%clk 0:00:47.6]} 32... hxg4+ {[%clk 0:00:49.9]} 33. hxg4
{[%clk 0:00:47]} 33... Nd5 {[%clk 0:00:47.1]} 34. Ke4 {[%clk 0:00:46.7]} 34...
Kf6 {[%clk 0:00:46.9]} 35. Kd3 {[%clk 0:00:42.9]} 35... Ke7 {[%clk 0:00:45.2]}
36. Kc4 {[%clk 0:00:40.8]} 36... Kd6 {[%clk 0:00:44.9]} 37. Rxb4 {[%clk
0:00:36.9]} 37... Nxb4 {[%clk 0:00:34]} 38. Kxb4 {[%clk 0:00:36.8]} 38... f5
{[%clk 0:00:34.9]} 39. f3 {[%clk 0:00:32]} 39... e5 {[%clk 0:00:22.8]} 40. dxe5+
{[%clk 0:00:31.3]} 40... Kxe5 {[%clk 0:00:23.7]} 41. Kc5 {[%clk 0:00:23.2]}
41... fxg4 {[%clk 0:00:23.4]} 42. fxg4 {[%clk 0:00:24.1]} 42... Kf4 {[%clk
0:00:24]} 43. b4 {[%clk 0:00:23.9]} 43... Kxg4 {[%clk 0:00:24.7]} 44. b5 {[%clk
0:00:24.8]} 44... Kf3 {[%clk 0:00:25.4]} 45. b6 {[%clk 0:00:25.7]} 45... g4
{[%clk 0:00:26]} 46. b7 {[%clk 0:00:26.6]} 46... g3 {[%clk 0:00:26.7]} 47. b8=Q
{[%clk 0:00:27.5]} 47... g2 {[%clk 0:00:27.3]} 48. Qb1 {[%clk 0:00:19.9]} 48...
Kf2 {[%clk 0:00:27.5]} 49. Qc2+ {[%clk 0:00:20.6]} 49... Kf1 {[%clk 0:00:27.4]}
50. Qd1+ {[%clk 0:00:20.9]} 50... Kf2 {[%clk 0:00:28]} 51. Qd2+ {[%clk
0:00:20.9]} 51... Kf1 {[%clk 0:00:28.7]} 52. Qf4+ {[%clk 0:00:21]} 52... Ke2
{[%clk 0:00:28.8]} 53. Qg3 {[%clk 0:00:20.2]} 53... Kf1 {[%clk 0:00:29]} 54.
Qf3+ {[%clk 0:00:20.8]} 54... Ke1 {[%clk 0:00:29.3]} 55. Qxg2 {[%clk 0:00:19.1]}
1-0

[Event "Early-Titled-Tuesday-Blitz-May-07-2024"]
[Site "Chess.com"]
[Date "2024.05.07"]
[Round "7"]
[White "talaicito"]
[Black "dennisodessa"]
[Result "0-1"]
[WhiteElo "2385"]
[BlackElo "2553"]
[TimeControl "180+1"]
[EndTime "9:22:03 PDT"]
[Termination "dennisodessa won on time"]

1. d4 {[%clk 0:03:00.9]} 1... Nf6 {[%clk 0:02:52.6]} 2. Nc3 {[%clk 0:03:00.5]}
2... d5 {[%clk 0:02:51.7]} 3. Bf4 {[%clk 0:03:00.9]} 3... e6 {[%clk 0:02:50.1]}
4. e3 {[%clk 0:03:01.1]} 4... c5 {[%clk 0:02:48.6]} 5. Nb5 {[%clk 0:03:00.3]}
5... Na6 {[%clk 0:02:48.2]} 6. c3 {[%clk 0:03:00.6]} 6... Be7 {[%clk 0:02:47.4]}
7. Nf3 {[%clk 0:03:00.2]} 7... O-O {[%clk 0:02:45.2]} 8. Ne5 {[%clk 0:03:00.6]}
8... Bd7 {[%clk 0:02:43]} 9. a4 {[%clk 0:02:59.3]} 9... Bxb5 {[%clk 0:02:34.9]}
10. axb5 {[%clk 0:02:58.5]} 10... Nc7 {[%clk 0:02:35.4]} 11. Bd3 {[%clk
0:02:57.5]} 11... c4 {[%clk 0:02:33.6]} 12. Bc2 {[%clk 0:02:57.5]} 12... Nxb5
{[%clk 0:02:33.8]} 13. g4 {[%clk 0:02:57.4]} 13... Nd6 {[%clk 0:02:32.9]} 14.
Rg1 {[%clk 0:02:48.2]} 14... Nfe4 {[%clk 0:02:23.6]} 15. g5 {[%clk 0:02:27.5]}
15... Bxg5 {[%clk 0:01:53.9]} 16. Bxg5 {[%clk 0:02:15.6]} 16... Nxg5 {[%clk
0:01:54.8]} 17. Qh5 {[%clk 0:02:11.8]} 17... Nde4 {[%clk 0:01:53.4]} 18. f3
{[%clk 0:02:00.9]} 18... g6 {[%clk 0:01:20.1]} 19. Qg4 {[%clk 0:01:57.3]} 19...
Nd6 {[%clk 0:01:07.7]} 20. Qxg5 {[%clk 0:01:38.3]} 20... Qxg5 {[%clk 0:01:08.6]}
21. Rxg5 {[%clk 0:01:34.6]} 21... f6 {[%clk 0:01:09.2]} 22. Rg2 {[%clk
0:01:13.2]} 22... fxe5 {[%clk 0:01:06]} 23. dxe5 {[%clk 0:01:14.1]} 23... Nf5
{[%clk 0:00:51.8]} 24. Ke2 {[%clk 0:00:56.6]} 24... Rf7 {[%clk 0:00:47.2]} 25.
f4 {[%clk 0:00:52.8]} 25... a5 {[%clk 0:00:35.4]} 26. e4 {[%clk 0:00:40]} 26...
Ne7 {[%clk 0:00:34.1]} 27. Ke3 {[%clk 0:00:33.4]} 27... b6 {[%clk 0:00:21.4]}
28. h4 {[%clk 0:00:30.7]} 28... Raf8 {[%clk 0:00:20]} 29. Rf1 {[%clk 0:00:24.4]}
29... dxe4 {[%clk 0:00:18.7]} 30. Bxe4 {[%clk 0:00:23.8]} 30... Nf5+ {[%clk
0:00:19.6]} 31. Bxf5 {[%clk 0:00:22]} 31... Rxf5 {[%clk 0:00:20.5]} 32. Ke4
{[%clk 0:00:20.3]} 32... Rd8 {[%clk 0:00:20.2]} 33. Rff2 {[%clk 0:00:14.8]}
33... Kf7 {[%clk 0:00:19.6]} 34. Rg5 {[%clk 0:00:13.7]} 34... Rd3 {[%clk
0:00:17.3]} 35. Rgg2 {[%clk 0:00:06.8]} 35... Ke7 {[%clk 0:00:16]} 36. Rd2
{[%clk 0:00:02]} 36... Rh5 {[%clk 0:00:05.2]} 0-1

[Event "Early-Titled-Tuesday-Blitz-May-07-2024"]
[Site "Chess.com"]
[Date "2024.05.07"]
[Round "7"]
[White "ckgchess"]
[Black "FontVella8"]
[Result "1-0"]
[WhiteElo "2902"]
[BlackElo "2682"]
[TimeControl "180+1"]
[EndTime "9:22:05 PDT"]
[Termination "ckgchess won by resignation"]

1. e4 {[%clk 0:02:57.7]} 1... c6 {[%clk 0:02:59.7]} 2. d4 {[%clk 0:02:57.9]}
2... d5 {[%clk 0:03:00.6]} 3. e5 {[%clk 0:02:58.6]} 3... Bf5 {[%clk 0:03:00.4]}
4. h4 {[%clk 0:02:59.4]} 4... h5 {[%clk 0:03:00.4]} 5. c4 {[%clk 0:03:00]} 5...
e6 {[%clk 0:03:00.4]} 6. Nc3 {[%clk 0:03:00.7]} 6... dxc4 {[%clk 0:02:58.9]} 7.
Bxc4 {[%clk 0:03:01.6]} 7... Nd7 {[%clk 0:02:59.2]} 8. Nge2 {[%clk 0:03:01]}
8... Ne7 {[%clk 0:02:58.5]} 9. Ng3 {[%clk 0:02:58.2]} 9... Qb6 {[%clk
0:02:55.8]} 10. O-O {[%clk 0:02:56.2]} 10... Rd8 {[%clk 0:02:45.5]} 11. Re1
{[%clk 0:02:10.7]} 11... Bg4 {[%clk 0:02:32.4]} 12. Qd3 {[%clk 0:02:03.5]} 12...
Nf5 {[%clk 0:02:27.4]} 13. Bg5 {[%clk 0:01:57.5]} 13... Nxe5 {[%clk 0:02:02.7]}
14. Rxe5 {[%clk 0:01:44.5]} 14... Rxd4 {[%clk 0:02:02.3]} 15. Nxf5 {[%clk
0:00:46]} 15... Rxd3 {[%clk 0:01:54.5]} 16. Bxd3 {[%clk 0:00:46.9]} 16... f6
{[%clk 0:01:32.7]} 17. Rxe6+ {[%clk 0:00:45.4]} 17... Kd7 {[%clk 0:01:32.9]} 18.
Na4 {[%clk 0:00:12.5]} 18... Qa5 {[%clk 0:00:57.7]} 19. Re4 {[%clk 0:00:11.2]}
19... fxg5 {[%clk 0:00:45.7]} 20. Ne3 {[%clk 0:00:11.5]} 20... Be6 {[%clk
0:00:33.2]} 21. Rd1 {[%clk 0:00:10.4]} 21... Bd6 {[%clk 0:00:24.8]} 22. Bc4
{[%clk 0:00:06.6]} 22... Bxc4 {[%clk 0:00:06.8]} 23. Nxc4 {[%clk 0:00:06.1]}
23... Qxa4 {[%clk 0:00:03.1]} 24. Ne5+ {[%clk 0:00:03.4]} 24... Kc7 {[%clk
0:00:03.3]} 25. Rxa4 {[%clk 0:00:03.6]} 25... Bxe5 {[%clk 0:00:03.7]} 26. hxg5
{[%clk 0:00:04.2]} 26... a6 {[%clk 0:00:02.9]} 27. b3 {[%clk 0:00:04.1]} 27...
Re8 {[%clk 0:00:02.2]} 28. g3 {[%clk 0:00:03.4]} 28... g6 {[%clk 0:00:02.4]} 29.
Re4 {[%clk 0:00:03.4]} 29... Re7 {[%clk 0:00:02.1]} 30. Kg2 {[%clk 0:00:03.7]}
30... c5 {[%clk 0:00:01.6]} 31. f4 {[%clk 0:00:03.4]} 31... Bd6 {[%clk
0:00:01.6]} 32. Rxe7+ {[%clk 0:00:04.3]} 32... Bxe7 {[%clk 0:00:02.5]} 33. Kf3
{[%clk 0:00:05.2]} 33... Kc6 {[%clk 0:00:02.4]} 34. Ke4 {[%clk 0:00:05.9]} 34...
b5 {[%clk 0:00:02.5]} 35. Rc1 {[%clk 0:00:05.5]} 35... Bd6 {[%clk 0:00:02.5]}
36. f5 {[%clk 0:00:04.7]} 36... gxf5+ {[%clk 0:00:02.7]} 37. Kxf5 {[%clk
0:00:05.6]} 37... Bxg3 {[%clk 0:00:03.2]} 38. g6 {[%clk 0:00:06.2]} 38... Bf2
{[%clk 0:00:02.1]} 39. g7 {[%clk 0:00:06.2]} 1-0

[Event "Early-Titled-Tuesday-Blitz-May-07-2024"]
[Site "Chess.com"]
[Date "2024.05.07"]
[Round "7"]
[White "Nf3c5"]
[Black "Sokoloco"]
[Result "0-1"]
[WhiteElo "2607"]
[BlackElo "2805"]
[TimeControl "180+1"]
[EndTime "9:22:07 PDT"]
[Termination "Sokoloco won by resignation"]

1. e4 {[%clk 0:02:55.8]} 1... g6 {[%clk 0:02:51.1]} 2. d4 {[%clk 0:02:54.4]}
2... Bg7 {[%clk 0:02:51.1]} 3. Nc3 {[%clk 0:02:53.5]} 3... d6 {[%clk 0:02:51.5]}
4. Be3 {[%clk 0:02:53.3]} 4... a6 {[%clk 0:02:51.9]} 5. Qd2 {[%clk 0:02:52.7]}
5... b5 {[%clk 0:02:51.8]} 6. h4 {[%clk 0:02:51.8]} 6... h6 {[%clk 0:02:28.3]}
7. a3 {[%clk 0:02:27.6]} 7... Bb7 {[%clk 0:02:27.6]} 8. f4 {[%clk 0:02:23.6]}
8... Nd7 {[%clk 0:02:25.5]} 9. Nf3 {[%clk 0:02:18.9]} 9... e5 {[%clk 0:02:23.6]}
10. fxe5 {[%clk 0:02:15.3]} 10... dxe5 {[%clk 0:02:24]} 11. d5 {[%clk 0:02:16]}
11... Ngf6 {[%clk 0:02:16.6]} 12. O-O-O {[%clk 0:01:54.9]} 12... Ng4 {[%clk
0:02:13.4]} 13. Bg1 {[%clk 0:01:46.5]} 13... h5 {[%clk 0:01:53]} 14. Kb1 {[%clk
0:01:20.3]} 14... Bh6 {[%clk 0:01:52.3]} 15. Qe1 {[%clk 0:01:17.1]} 15... O-O
{[%clk 0:01:49.3]} 16. g3 {[%clk 0:01:14.8]} 16... Qf6 {[%clk 0:01:34.9]} 17.
Nd2 {[%clk 0:01:03.1]} 17... Nb6 {[%clk 0:01:03.7]} 18. Bh3 {[%clk 0:00:58.5]}
18... Bc8 {[%clk 0:01:04.1]} 19. Bc5 {[%clk 0:00:51.9]} 19... Rd8 {[%clk
0:00:44.5]} 20. Rf1 {[%clk 0:00:52.3]} 20... Qg7 {[%clk 0:00:44.4]} 21. Qe2
{[%clk 0:00:51.6]} 21... Bxd2 {[%clk 0:00:38.3]} 22. Qxd2 {[%clk 0:00:45.7]}
22... Nc4 {[%clk 0:00:39.2]} 23. Qe2 {[%clk 0:00:46]} 23... Nge3 {[%clk
0:00:23.7]} 24. Bxc8 {[%clk 0:00:40.6]} 24... Nxd1 {[%clk 0:00:21.1]} 25. Nxd1
{[%clk 0:00:29.5]} 25... Raxc8 {[%clk 0:00:11.5]} 26. Be7 {[%clk 0:00:29.5]}
26... Rd7 {[%clk 0:00:10.8]} 27. Bf6 {[%clk 0:00:29.8]} 27... Qh6 {[%clk
0:00:11.5]} 28. b3 {[%clk 0:00:26.9]} 28... Nd2+ {[%clk 0:00:10.4]} 29. Kb2
{[%clk 0:00:26.6]} 29... Nxf1 {[%clk 0:00:11.1]} 30. Qxf1 {[%clk 0:00:26.5]}
30... Re8 {[%clk 0:00:05.2]} 31. Qf3 {[%clk 0:00:23.9]} 31... Rd6 {[%clk
0:00:05.3]} 32. Ne3 {[%clk 0:00:20.8]} 32... Rxf6 {[%clk 0:00:04.7]} 33. Qxf6
{[%clk 0:00:19.9]} 33... Qxe3 {[%clk 0:00:05.4]} 34. Qc6 {[%clk 0:00:18.4]}
34... Rf8 {[%clk 0:00:05]} 35. g4 {[%clk 0:00:13.6]} 35... hxg4 {[%clk
0:00:04.6]} 36. h5 {[%clk 0:00:14.1]} 36... Qxe4 {[%clk 0:00:05.2]} 37. h6
{[%clk 0:00:09.8]} 37... Qf4 {[%clk 0:00:05.2]} 38. Qxc7 {[%clk 0:00:07.8]}
38... Qxh6 {[%clk 0:00:05.5]} 39. Qxe5 {[%clk 0:00:08.4]} 39... Qg7 {[%clk
0:00:05.6]} 0-1

[Event "Early-Titled-Tuesday-Blitz-May-07-2024"]
[Site "Chess.com"]
[Date "2024.05.07"]
[Round "7"]
[White "SaiHanThiha"]
[Black "SkinnyPuppy8"]
[Result "1-0"]
[WhiteElo "2450"]
[BlackElo "2228"]
[TimeControl "180+1"]
[EndTime "9:22:08 PDT"]
[Termination "SaiHanThiha won by checkmate"]

1. e4 {[%clk 0:03:00.9]} 1... d5 {[%clk 0:02:58.6]} 2. exd5 {[%clk 0:02:59.4]}
2... Nf6 {[%clk 0:02:58.1]} 3. d4 {[%clk 0:02:58.4]} 3... Bg4 {[%clk 0:02:58]}
4. Be2 {[%clk 0:02:35.8]} 4... Bxe2 {[%clk 0:02:56.6]} 5. Qxe2 {[%clk
0:02:35.7]} 5... Qxd5 {[%clk 0:02:57]} 6. Nf3 {[%clk 0:02:35.5]} 6... e6 {[%clk
0:02:56.3]} 7. O-O {[%clk 0:02:35]} 7... Nc6 {[%clk 0:02:56.5]} 8. c4 {[%clk
0:02:34.4]} 8... Nxd4 {[%clk 0:02:55.5]} 9. Nxd4 {[%clk 0:02:29.6]} 9... Qxd4
{[%clk 0:02:54.9]} 10. Nc3 {[%clk 0:02:26.5]} 10... Bd6 {[%clk 0:02:43.5]} 11.
Be3 {[%clk 0:02:17.7]} 11... Qe5 {[%clk 0:02:37.3]} 12. f4 {[%clk 0:02:15.3]}
12... Qh5 {[%clk 0:02:24.8]} 13. Qxh5 {[%clk 0:02:04.4]} 13... Nxh5 {[%clk
0:02:25.7]} 14. c5 {[%clk 0:02:04.2]} 14... Be7 {[%clk 0:02:21.5]} 15. Nb5
{[%clk 0:02:00.3]} 15... Bd8 {[%clk 0:02:13.6]} 16. f5 {[%clk 0:01:55.5]} 16...
O-O {[%clk 0:01:56.9]} 17. Rad1 {[%clk 0:01:44.5]} 17... a6 {[%clk 0:01:49.9]}
18. Nd4 {[%clk 0:01:43]} 18... e5 {[%clk 0:01:33.2]} 19. Nf3 {[%clk 0:01:41.5]}
19... e4 {[%clk 0:01:26.2]} 20. Ne5 {[%clk 0:01:38.2]} 20... Re8 {[%clk
0:01:21.5]} 21. Nc4 {[%clk 0:01:27.6]} 21... Nf6 {[%clk 0:01:14.2]} 22. Na5
{[%clk 0:01:26]} 22... Rb8 {[%clk 0:01:04.4]} 23. c6 {[%clk 0:01:23.9]} 23... b6
{[%clk 0:00:56.8]} 24. Nb7 {[%clk 0:01:23.8]} 24... Be7 {[%clk 0:00:38.5]} 25.
Bf4 {[%clk 0:01:22.7]} 25... Rbc8 {[%clk 0:00:38.9]} 26. h3 {[%clk 0:01:16.5]}
26... Bf8 {[%clk 0:00:26.4]} 27. g4 {[%clk 0:01:11.6]} 27... h6 {[%clk
0:00:26.4]} 28. Kf2 {[%clk 0:00:59.1]} 28... Nh7 {[%clk 0:00:26.1]} 29. Ke3
{[%clk 0:00:54.4]} 29... Ng5 {[%clk 0:00:20.5]} 30. h4 {[%clk 0:00:46.9]} 30...
Nh7 {[%clk 0:00:19.6]} 31. g5 {[%clk 0:00:46.9]} 31... hxg5 {[%clk 0:00:19.6]}
32. hxg5 {[%clk 0:00:47.8]} 32... Bc5+ {[%clk 0:00:16.5]} 33. Nxc5 {[%clk
0:00:46.5]} 33... bxc5 {[%clk 0:00:17.4]} 34. Rd7 {[%clk 0:00:45.4]} 34... f6
{[%clk 0:00:17.6]} 35. g6 {[%clk 0:00:35.6]} 35... Ng5 {[%clk 0:00:17.8]} 36.
Rfd1 {[%clk 0:00:31.3]} 36... Kf8 {[%clk 0:00:16.4]} 37. Bxg5 {[%clk 0:00:28.9]}
37... fxg5 {[%clk 0:00:16.2]} 38. Rf7+ {[%clk 0:00:29.8]} 38... Kg8 {[%clk
0:00:16]} 39. Rdd7 {[%clk 0:00:30.7]} 39... Rb8 {[%clk 0:00:12.7]} 40. Rxg7+
{[%clk 0:00:29.2]} 40... Kh8 {[%clk 0:00:13.1]} 41. f6 {[%clk 0:00:27]} 41...
Rxb2 {[%clk 0:00:11.7]} 42. Rh7+ {[%clk 0:00:26.7]} 42... Kg8 {[%clk 0:00:11.7]}
43. Rdg7+ {[%clk 0:00:27.6]} 43... Kf8 {[%clk 0:00:12.1]} 44. Rh8# {[%clk
0:00:28.5]} 1-0